[Event "44th Chess Olympiad Women 2022"]
[Site "Chennai"]
[Date "2022.08.05"]
[Round "7.2"]
[White "Dzagnidze, Nana"]
[Black "Bulmaga, Irina"]
[Result "1/2-1/2"]
[WhiteElo "2531"]
[BlackElo "2394"]
[Annotator "ChessBase"]
[PlyCount "69"]
[EventDate "2022.??.??"]
[TimeControl "60"]

1. d4 {[%emt 0:00:05]} Nf6 {[%emt 0:00:06]} 2. c4 {[%emt 0:00:06]} e6 {[%emt 0:
00:00]} 3. Nc3 {[%emt 0:00:25]} Bb4 {[%emt 0:00:15]} 4. Qc2 {[%emt 0:00:09]}
O-O {[%emt 0:00:22]} 5. a3 {[%emt 0:00:04]} Bxc3+ {[%emt 0:00:26]} 6. Qxc3 {
[%emt 0:00:03]} b6 {[%emt 0:01:01]} 7. Bg5 {[%emt 0:00:35]} Bb7 {[%emt 0:00:37]
} 8. e3 {[%emt 0:00:14]} d6 {[%emt 0:00:59]} 9. Ne2 {[%emt 0:01:25]} Nbd7 {
[%emt 0:01:52]} 10. Qc2 {[%emt 0:03:05]} h6 {[%emt 0:01:05]} 11. Bh4 {[%emt 0:
00:00]} Qe7 {[%emt 0:02:17]} 12. Nc3 {[%emt 0:05:03]} c5 {[%emt 0:00:51]} 13.
d5 {[%emt 0:11:53]} exd5 {[%emt 0:16:14]} 14. Nxd5 {[%emt 0:16:38]} Bxd5 {
[%emt 0:14:22]} 15. cxd5 {[%emt 0:00:03]} c4 {[%emt 0:10:27]} 16. Be2 {[%emt 0:
00:00]} Rac8 {[%emt 0:10:03]} 17. O-O {[%emt 0:01:07]} g5 {[%emt 0:03:29]} 18.
Bg3 {[%emt 0:00:07]} Ne4 {[%emt 0:00:42]} 19. Rad1 {[%emt 0:02:15]} f5 {
[%emt 0:03:13]} 20. Rd4 {[%emt 0:14:00]} Ndc5 {[%emt 0:13:17]} 21. Bf3 {
[%emt 0:02:44]} b5 {[%emt 0:01:55]} 22. Bxe4 {[%emt 0:00:06]} Nxe4 {[%emt 0:00:
00]} 23. Re1 {[%emt 0:00:18]} Nc5 {[%emt 0:03:40]} 24. f3 {[%emt 0:03:50]} Nd3
{[%emt 0:00:47]} 25. Re2 {[%emt 0:00:38]} Qf6 {[%emt 0:02:11]} 26. h3 {[%emt 0:
00:00]} Rce8 {[%emt 0:01:11]} 27. Rxd3 {[%emt 0:09:54]} cxd3 {[%emt 0:00:02]}
28. Qxd3 {[%emt 0:00:01]} f4 {[%emt 0:02:40]} 29. Be1 {[%emt 0:00:10]} Rxe3 {
[%emt 0:00:56]} 30. Rxe3 {[%emt 0:00:05]} fxe3 {[%emt 0:00:06]} 31. Bc3 {
[%emt 0:00:02]} Qf5 {[%emt 0:04:13]} 32. Qd4 {[%emt 0:00:09]} Qe5 {[%emt 0:00:
00]} 33. Qd3 {[%emt 0:01:32]} Qf5 {[%emt 0:00:04]} 34. Qd4 {[%emt 0:02:51]} Qe5
{[%emt 0:00:04]} 35. Qd3 {[%emt 0:00:31]} 1/2-1/2

[Event "44th Chess Olympiad Women 2022"]
[Site "Chennai"]
[Date "2022.08.05"]
[Round "7.2"]
[White "Javakhishvili, Lela"]
[Black "Ciolacu, Alessia-Mihaela"]
[Result "1-0"]
[WhiteElo "2476"]
[BlackElo "2163"]
[Annotator "TA"]
[PlyCount "183"]
[EventDate "2022.??.??"]
[TimeControl "60"]

{[%evp 18,183,18,19,9,0,13,2,0,0,18,0,9,0,0,0,0,-18,13,14,22,0,0,-36,-25,-33,0,
-7,85,98,187,196,201,208,181,203,172,181,291,286,276,266,246,270,397,150,149,
151,164,75,228,234,290,284,318,313,373,324,883,464,456,291,291,293,293,293,286,
269,1066,577,1424,398,512,505,501,479,503,476,493,466,502,345,455,455,517,480,
460,448,793,785,658,619,612,612,612,583,768,761,741,738,734,724,1363,1200,1411,
1493,6403,6387,29967,29972,29978,29979,29979,29961,29958,12073,29964,29969,
29967,1727,1235,0,29968,29970,29970,29971,29970,29971,29970,29971,29973,29968,
29968,203,251,0,29968,29969,29969,0,29974,29974,29973,29974,29968,29970,29966,
29970,29970,29969,29981,29982,29982,252,244,237,199,0,196,0,29982,29983,29991,
29992,29992,29993,29996,29997]} 1. Nf3 {[%emt 0:00:09]} Nf6 {[%emt 0:00:54]} 2.
c4 {[%emt 0:00:39]} e6 {[%emt 0:00:10]} 3. g3 {[%emt 0:00:10]} d5 {[%emt 0:00:
00]} 4. Bg2 {[%emt 0:00:37]} Be7 {[%emt 0:01:35]} 5. d4 {[%emt 0:01:34]} O-O {
[%emt 0:00:12]} 6. O-O {[%emt 0:00:09]} dxc4 {[%emt 0:00:08]} 7. Qc2 {[%emt 0:
00:00]} a6 {[%emt 0:00:22]} 8. a4 {[%emt 0:00:06]} Bd7 {[%emt 0:00:25]} 9. Qxc4
{[%emt 0:00:09]} Bc6 {[%emt 0:00:11]} 10. Bf4 {[%emt 0:02:47]} Bd6 {[%emt 0:00:
00] E05: Open Catalan: 5 Nf3 Be7.} 11. Qc1 {[%emt 0:01:17]} a5 {[%emt 0:00:34]}
12. Bd2 {[%emt 0:04:03]} Nbd7 {[%emt 0:00:59] The position is equal.} 13. Nc3 {
[%emt 0:00:11]} Ne4 {[%emt 0:01:22] [#] 13...Qe7 is the modern continuation.}
14. Be1 $146 {[%emt 0:05:06]} (14. Nxe4 {is more complex.} Bxe4 15. Ng5 Bxg2
16. Qc2) ({Predecessor:} 14. Rd1 Ndf6 15. Qc2 Nxd2 16. Nxd2 Bxg2 17. Kxg2 Bb4
18. Nc4 c5 19. dxc5 Qc7 20. Ne4 Nxe4 21. Qxe4 Bxc5 {½-½ (41) Ding,L (2799)
-Wei,Y (2729) Hangzhou 2022}) 14... Ndf6 {[%emt 0:07:57]} 15. Qc2 {[%emt 0:00:
00]} Nxc3 {[%emt 0:19:50]} 16. bxc3 {[%emt 0:01:03]} Be4 {[%emt 0:00:20]} 17.
Qb2 {[%emt 0:00:35]} Qd7 {[%emt 0:14:24]} 18. c4 {[%emt 0:04:10]} c5 {[%emt 0:
00:00]} 19. Ne5 {[%emt 0:19:05]} Qc7 {[%emt 0:05:24]} 20. Bxe4 {[%emt 0:15:16]}
Nxe4 {[%emt 0:00:08]} 21. Nd3 {[%emt 0:00:26]} Be7 {[%emt 0:09:28]} 22. Rb1 {
[%emt 0:03:04]} Ra7 {[%emt 0:01:12]} (22... Bf6 $11 {keeps the balance.}) 23.
f3 $16 {[%emt 0:01:53]} Nd6 {[%emt 0:08:20]} (23... Bf6 $16 24. Qc1 (24. e3 Nd6
$16) 24... Bg5) 24. dxc5 $18 {[%emt 0:01:05]} Nxc4 {[%emt 0:00:13]} 25. Qd4 {
[%emt 0:00:42]} Na3 {[%emt 0:01:25]} 26. Rc1 {[%emt 0:01:17]} ({But not} 26.
Bc3 $2 Bf6 27. Ne5 Rd8 $19) 26... Bf6 {[%emt 0:08:43]} 27. Qe4 {[%emt 0:05:08]}
Rd8 {[%emt 0:05:57]} (27... Rc8 $142 28. Bc3 b5) 28. Bc3 {[%emt 0:05:02]} b5 {
[%emt 0:01:38]} 29. Bxf6 {[%emt 0:01:57]} gxf6 {[%emt 0:00:06]} 30. Qh4 {
[%emt 0:02:57]} Qe7 {[%emt 0:16:00]} (30... b4 $142 31. Qxf6 Qe7) 31. Rc3 $2 {
[%emt 0:08:41]} (31. Nf4 $18 {is the precise move to win. Strongly threatening
Nh5.} f5 32. Qh6) 31... b4 $16 {[%emt 0:00:00] [#]} 32. Nxb4 {[%emt 0:01:40]}
axb4 {[%emt 0:00:00]} 33. Qxb4 {[%emt 0:00:02]} (33. Qg4+ $18 {and White stays
clearly on top.} Kh8 34. Qxb4) 33... Rda8 $2 {[%emt 0:00:00]} 34. Rxa3 $18 {
[%emt 0:00:13]} Qc7 {[%emt 0:00:00]} 35. Rc1 {[%emt 0:00:40][%cal Yf1c1,Yc1c4,
Yc4d4]} Qc6 {[%emt 0:00:00]} 36. Rc4 {[%emt 0:01:01]} Rb7 {[%emt 0:00:00]} 37.
Qc3 {[%emt 0:00:16]} Qd5 $2 {[%emt 0:00:00]} (37... e5 38. Rb3 Rab8) 38. Rd4 {
[%emt 0:01:09]} Qe5 {[%emt 0:00:00]} 39. Kf2 {[%emt 0:00:45] aiming for c6.}
Rc8 {[%emt 0:00:00]} 40. Rg4+ {[%emt 0:00:47]} Kf8 {[%emt 0:00:00]} 41. c6 {
[%emt 0:30:56]} Rb6 {[%emt 0:01:57]} 42. Rc4 {[%emt 0:00:00] Qc1 is the strong
threat.} Qd6 $2 {[%emt 0:04:19]} (42... Qxc3 43. Raxc3 Ke7) 43. c7 {[%emt 0:00:
00][%cal Yc3f6]} Rb7 {[%emt 0:00:33] [#]} 44. Ra2 $2 {[%emt 0:00:00]} (44. Qxf6
$1 {White threatens Qh8+ and mate.} Rbxc7 45. Rd3 Qxd3 46. Rxc7 Rxc7 47. Qh6+
Ke8 48. exd3) 44... Rcxc7 {[%emt 0:06:58]} 45. Rxc7 {[%emt 0:00:00]} Qxc7 {
[%emt 0:00:05]} 46. Qxf6 {[%emt 0:00:00] Endgame KQR-KQR} Qc1 {[%emt 0:03:22]}
47. Qd8+ {[%emt 0:00:00]} Kg7 {[%emt 0:00:00]} 48. Qd4+ {[%emt 0:00:00]} e5 {
[%emt 0:06:06]} 49. Ra1 {[%emt 0:00:00] Threatening mate with Qg4+.} Qc7 {
[%emt 0:02:44]} 50. Qe3 {[%emt 0:00:00]} Ra7 {[%emt 0:01:47]} 51. Rc1 {[%emt 0:
00:00]} Qe7 {[%emt 0:00:17]} 52. Rc4 {[%emt 0:00:29]} h6 {[%emt 0:02:18]} (
52... Ra6 $142 53. Rg4+ Kf8) 53. Rg4+ {[%emt 0:00:49]} Kh7 {[%emt 0:00:01]} 54.
Rh4 {[%emt 0:00:45]} Ra6 {[%emt 0:00:00]} 55. Qd3+ {[%emt 0:01:19]} Rg6 {
[%emt 0:00:02]} 56. Rg4 {[%emt 0:01:25] And now Rxg6 would win.} h5 {[%emt 0:
01:00]} 57. Rxg6 {[%emt 0:00:23]} fxg6 {[%emt 0:00:02] KQ-KQ} 58. Qe4 {[%emt 0:
00:14]} Qc5+ {[%emt 0:02:42]} 59. Kg2 {[%emt 0:00:04] Hoping for Qb7+.} Kg7 {
[%emt 0:01:19]} 60. Qb7+ {[%emt 0:00:41]} Kf6 {[%emt 0:00:37]} 61. Qb5 {
[%emt 0:00:25]} Qc2 {[%emt 0:01:35]} 62. a5 {[%emt 0:00:40][%cal Ya4a5,Ya5a6]}
e4 {[%emt 0:01:18]} 63. f4 {[%emt 0:00:00]} Kg7 {[%emt 0:01:32]} 64. a6 {
[%emt 0:00:18]} e3 {[%emt 0:00:09]} 65. Kf3 {[%emt 0:01:16]} Qc1 {[%emt 0:00:
47]} 66. Qe5+ {[%emt 0:02:02]} (66. Qd7+ $142 Kh6 67. a7 Qf1+ 68. Kxe3 Qg1+ 69.
Kd2 Qa1 70. f5 Qa5+ 71. Ke3) 66... Kh7 {[%emt 0:00:14]} 67. Qe7+ {[%emt 0:00:
16]} Kh6 {[%emt 0:00:05]} 68. Qg5+ {[%emt 0:00:50]} (68. a7 $142 Qf1+ 69. Kxe3
Qg1+ 70. Kd2 Qd4+ 71. Kc2 Qa4+ 72. Kb2 Qd4+ 73. Kb3 Qd1+ 74. Kb4 Qb1+ 75. Kc5
Qg1+ 76. Kb5 Qb1+ 77. Kc5 Qc2+ 78. Kd6 Qd2+ 79. Kc6 Qc2+ 80. Kd6 Qd1+ 81. Kc7
Qc2+ 82. Kd6) 68... Kg7 {[%emt 0:00:00]} 69. Qe7+ {[%emt 0:00:46]} (69. Qa5 $18
Qh1+ 70. Kxe3 Qg1+ 71. Ke4 Qb1+ 72. Kd4 Qg1+ 73. e3 Qd1+ 74. Ke5) 69... Kh6 $1
{[%emt 0:00:56]} 70. a7 {[%emt 0:00:00]} Qf1+ {[%emt 0:00:48]} 71. Kxe3 {
[%emt 0:00:13]} Qg1+ {[%emt 0:00:10]} 72. Kd3 {[%emt 0:00:23]} Qd1+ {[%emt 0:
01:00] [#]} 73. Kc4 $1 {[%emt 0:00:07]} Qc2+ {[%emt 0:00:29]} 74. Kd5 {[%emt 0:
00:21]} Qa2+ {[%emt 0:00:45]} 75. Kd6 $2 {[%emt 0:00:41]} (75. Kd4 Qa1+ 76. Kc4
Qa4+ 77. Kc3 Qa1+ 78. Kb4 Qb2+ 79. Ka5 Qa2+ 80. Kb4 Qd2+ 81. Kb5 Qd5+ 82. Qc5
Qb7+ 83. Ka5) 75... Qa6+ {[%emt 0:00:07]} 76. Kd5 {[%emt 0:00:22]} Qa2+ {
[%emt 0:00:04]} 77. Kd4 {[%emt 0:00:13]} Qd2+ {[%emt 0:00:22]} 78. Kc4 {
[%emt 0:00:45]} Qc2+ $1 {[%emt 0:00:16]} 79. Kb4 {[%emt 0:00:06]} Qb2+ {
[%emt 0:00:32]} 80. Ka5 {[%emt 0:00:08]} Qa2+ {[%emt 0:00:00]} 81. Kb6 {
[%emt 0:00:07]} Qb3+ {[%emt 0:00:26]} 82. Kc7 {[%emt 0:00:18]} Qc4+ {[%emt 0:
00:20]} 83. Kd7 {[%emt 0:00:32]} Qd5+ {[%emt 0:01:08]} 84. Ke8 {[%emt 0:00:45]}
Qa8+ {[%emt 0:00:16]} 85. Kf7 $2 {[%emt 0:00:44]} (85. Qd8 {mates} Qc6+ 86. Qd7
Qh1 87. Kf7 Qa8 88. f5 h4 89. g4 Kg5 90. fxg6) 85... Qd5+ {[%emt 0:00:04]} 86.
Kf8 {[%emt 0:01:28][%csl Gf8][%cal Re7g7]} Qa8+ {[%emt 0:00:00]} 87. Kf7 {
[%emt 0:00:31] Qg5+ would kill now.} Qd5+ {[%emt 0:00:02]} 88. Ke8 {[%emt 0:00:
05]} Qa8+ {[%emt 0:00:28] [#]} 89. Qd8 $1 {[%emt 0:00:02] White mates.} Qe4+ {
[%emt 0:00:29]} 90. Kf8 {[%emt 0:00:44]} Qf5+ {[%emt 0:00:00]} 91. Kg8 {
[%emt 0:00:18]} Qe6+ {[%emt 0:00:40]} 92. Kh8 {[%emt 0:00:37] Weighted Error
Value: White=0.52/Black=0.35} 1-0

[Event "44th Chess Olympiad Women 2022"]
[Site "Chennai"]
[Date "2022.08.05"]
[Round "7.2"]
[White "Lehaci, Miruna-Daria"]
[Black "Arabidze, Meri"]
[Result "1/2-1/2"]
[WhiteElo "2193"]
[BlackElo "2426"]
[Annotator "TA"]
[PlyCount "107"]
[EventDate "2022.??.??"]
[TimeControl "60"]

{[%evp 14,107,4,7,9,12,43,31,43,41,48,44,36,41,19,33,26,-76,0,0,0,0,0,-22,-10,
-31,-39,-26,-31,-51,-46,-46,-46,-46,-46,-46,-46,-48,-53,-53,-50,-53,-49,-66,
-18,-17,-15,-17,-17,-25,-20,-55,-52,-68,-30,-44,0,-65,0,-39,0,-51,0,0,0,0,0,0,
0,0,0,0,0,0,0,0,0,0,0,-5,0,0,0,0,0,-5,0,0,0,0,0,-11,0,0,0,-6]} 1. e4 {[%emt 0:
00:00]} e5 {[%emt 0:00:13]} 2. Nf3 {[%emt 0:00:04]} Nc6 {[%emt 0:00:07]} 3. d4
{[%emt 0:00:04]} exd4 {[%emt 0:00:20]} 4. Nxd4 {[%emt 0:00:03]} Bc5 {[%emt 0:
00:00]} 5. Nb3 {[%emt 0:00:05]} Bb6 {[%emt 0:00:33]} 6. Nc3 {[%emt 0:00:05]}
Nf6 {[%emt 0:01:32]} 7. Bg5 {[%emt 0:00:13]} h6 {[%emt 0:01:16] 7...0-0 is the
fancy move.} 8. Bh4 {[%emt 0:00:07]} d6 {[%emt 0:01:41][%cal Yf6e4] C45:
Scotch Game.} 9. f3 {[%emt 0:00:26]} Be6 {[%emt 0:01:53]} 10. Bb5 {[%emt 0:00:
00]} O-O {[%emt 0:08:50] White is slightly better.} 11. Bxc6 {[%emt 0:11:19]}
bxc6 {[%emt 0:00:14]} 12. Qe2 {[%emt 0:01:22]} a5 {[%emt 0:21:58]} 13. Na4 {
[%emt 0:02:50]} Ba7 {[%emt 0:00:21]} 14. O-O-O {[%emt 0:03:07]} Qb8 {[%emt 0:
00:00] [#]} 15. Nd4 $146 {[%emt 0:25:16]} (15. Bxf6 $11 gxf6 16. Nc3) ({
Predecessor:} 15. Bxf6 gxf6 16. Nc3 Qb6 17. Qd2 Kg7 18. Rhf1 Qa6 19. Nd4 Rab8
20. Nxe6+ fxe6 21. b3 {½-½ (38) Chapman,M (1841)-Kraujunas,V (1869) LSS
email 2020}) 15... Qb4 {[%emt 0:04:46]} (15... Bxd4 $17 16. Rxd4 c5) 16. Nxe6
$11 {[%emt 0:04:04]} fxe6 {[%emt 0:01:15]} 17. b3 {[%emt 0:01:44]} Nd7 {
[%emt 0:13:27]} 18. Be1 {[%emt 0:04:59]} Qb5 {[%emt 0:04:56]} 19. Nc3 {[%emt 0:
00:00]} Qxe2 {[%emt 0:06:04]} 20. Nxe2 {[%emt 0:00:04]} a4 {[%emt 0:00:21]} 21.
Nd4 {[%emt 0:11:28]} Bxd4 {[%emt 0:04:31]} 22. Rxd4 {[%emt 0:00:05]} axb3 {
[%emt 0:00:06]} 23. axb3 {[%emt 0:00:12]} Ra1+ {[%emt 0:00:35]} 24. Kd2 $1 {
[%emt 0:01:23]} c5 {[%emt 0:02:56]} 25. Rd3 {[%emt 0:04:48]} Ne5 {[%emt 0:00:
00]} 26. Rc3 {[%emt 0:01:15]} Nc6 {[%emt 0:05:36]} 27. Rg1 {[%emt 0:02:21]}
Rfa8 {[%emt 0:02:01]} 28. h4 {[%emt 0:04:18]} h5 {[%emt 0:03:41]} (28... Rf8
$15 {should be considered.}) 29. Bf2 {[%emt 0:01:30]} Rxg1 {[%emt 0:05:50]} 30.
Bxg1 {[%emt 0:00:04] Endgame KRB-KRN} e5 {[%emt 0:00:44]} 31. Bf2 {[%emt 0:05:
28]} Kf7 {[%emt 0:01:17]} 32. g3 {[%emt 0:01:23]} Ke6 {[%emt 0:00:00]} 33. Rc4
{[%emt 0:01:30]} Nb4 {[%emt 0:01:16]} 34. Be1 {[%emt 0:02:14]} Nc6 {[%emt 0:04:
45]} 35. Bf2 {[%emt 0:00:17]} Nb4 {[%emt 0:00:30]} 36. Be1 {[%emt 0:00:12]} Nc6
{[%emt 0:00:30]} 37. Bf2 {[%emt 0:00:55]} Rf8 {[%emt 0:00:00]} (37... Ra1 $1
$15) 38. Ke2 {[%emt 0:00:43] The position is equal.} g6 {[%emt 0:00:40]} 39.
Ra4 {[%emt 0:00:55]} Kd7 {[%emt 0:00:19]} 40. c3 {[%emt 0:00:00]} Rb8 {[%emt 0:
00:39]} 41. Ra3 {[%emt 0:30:17]} Nd8 {[%emt 0:05:26]} 42. Be3 {[%emt 0:00:00]}
Ne6 {[%emt 0:03:18]} 43. Kd3 {[%emt 0:00:00]} Kc6 {[%emt 0:02:40]} (43... Rf8
$5 44. Ke2 Kc6 $11) 44. Ra6+ {[%emt 0:00:00]} Kb7 {[%emt 0:01:10]} 45. Ra1 {
[%emt 0:00:00]} Kc6 {[%emt 0:01:27]} 46. Kc2 {[%emt 0:00:00]} Kd7 {[%emt 0:02:
43]} 47. Rf1 {[%emt 0:00:00]} Ra8 {[%emt 0:01:01]} 48. Kb2 {[%emt 0:00:00]} Re8
{[%emt 0:00:50]} 49. Bh6 {[%emt 0:00:00]} Rh8 {[%emt 0:00:25]} 50. Bd2 {
[%emt 0:00:00]} Re8 {[%emt 0:02:07]} 51. Kc2 {[%emt 0:00:00]} Ra8 {[%emt 0:03:
21]} 52. Kb2 {[%emt 0:00:00]} Re8 {[%emt 0:00:11]} 53. Kc2 {[%emt 0:00:00]} Ra8
{[%emt 0:00:07]} 54. Kb2 {[%emt 0:00:00] Weighted Error Value: White=0.07 
(flawless) /Black=0.11 (very precise)} 1/2-1/2

[Event "44th Chess Olympiad Women 2022"]
[Site "Chennai"]
[Date "2022.08.05"]
[Round "7.2"]
[White "Sandu, Mihaela"]
[Black "Batsiashvili, Nino"]
[Result "1/2-1/2"]
[WhiteElo "2297"]
[BlackElo "2466"]
[Annotator "TA"]
[PlyCount "49"]
[EventDate "2022.??.??"]
[TimeControl "60"]

{[%evp 11,49,4,26,-13,-6,0,9,14,21,26,18,22,17,27,29,0,0,-43,-45,-28,-37,-51,
-53,-54,0,0,0,0,0,0,0,0,0,0,0,0,0,0,0,0]} 1. e4 {[%emt 0:00:03]} c6 {[%emt 0:
00:00]} 2. d4 {[%emt 0:00:05]} d5 {[%emt 0:00:03]} 3. e5 {[%emt 0:00:08]} Bf5 {
[%emt 0:00:04]} 4. h4 {[%emt 0:00:06]} h5 {[%emt 0:00:49]} 5. Bd3 {[%emt 0:00:
00]} Bxd3 {[%emt 0:00:51]} 6. Qxd3 {[%emt 0:00:05]} e6 {[%emt 0:00:46]} 7. Bg5
{[%emt 0:00:14] B12: Caro-Kann: Advance Variation.} Qb6 {[%emt 0:01:32]} 8. Nd2
{[%emt 0:00:17] Active counter play!} Ne7 {[%emt 0:05:38]} 9. Ngf3 {[%emt 0:00:
00]} Nf5 {[%emt 0:02:57]} 10. O-O {[%emt 0:01:13]} Qa6 {[%emt 0:03:12]} 11. c4
{[%emt 0:02:13]} Bb4 {[%emt 0:10:38]} 12. b3 {[%emt 0:04:18]} O-O {[%emt 0:00:
00] [#]} 13. a3 $146 {[%emt 0:11:02]} ({Predecessor:} 13. Rfc1 Nd7 14. a3 Bxd2
15. Qxd2 Rac8 16. a4 Rfe8 17. Qc3 c5 18. cxd5 exd5 19. Qd2 {½-½ (26) Shomoev,
A (2562)-Akopian,V (2700) Moscow 2008}) 13... Bxd2 {[%emt 0:03:52]} 14. Qxd2 {
[%emt 0:14:20]} dxc4 {[%emt 0:07:06]} 15. bxc4 {[%emt 0:11:43]} Qxc4 {[%emt 0:
00:00]} 16. Rfc1 {[%emt 0:00:17]} Qd5 {[%emt 0:01:31]} 17. Rc5 {[%emt 0:00:08]}
Qd7 {[%emt 0:06:49]} (17... Qb3 $1 $15) 18. Bf6 $11 {[%emt 0:00:51] The
position is equal.} Na6 {[%emt 0:00:51]} (18... gxf6 {is a self mate.} 19. exf6
) 19. Rc3 {[%emt 0:03:58]} Nc7 {[%emt 0:08:47] [#] Threatens to win with ...
Nd5.} (19... gxf6 20. exf6 Kh7 21. Qg5 $18) 20. Bxg7 {[%emt 0:01:26]} Nxg7 {
[%emt 0:03:03] Pair of Knights!} (20... Kxg7 $5 21. Qg5+ Kh8 $11) 21. Qh6 {
[%emt 0:01:38] Ng5 is the strong threat.} Nf5 {[%emt 0:15:35][%csl Yd4,Yh6]}
22. Qg5+ {[%emt 0:00:54]} Ng7 {[%emt 0:00:04]} 23. Qh6 {[%emt 0:07:51] [#] And
now Ng5 would win.} Nf5 {[%emt 0:00:16]} 24. Qg5+ {[%emt 0:03:45]} Ng7 {
[%emt 0:00:05] Strongly threatening ...Nd5.} 25. Qh6 {[%emt 0:02:35] Weighted
Error Value: White=0.06 (flawless) /Black=0.03 (flawless)} 1/2-1/2

[Event "44th Chess Olympiad Women 2022"]
[Site "Chennai"]
[Date "2022.08.05"]
[Round "7.3"]
[White "Lanchava, Tea"]
[Black "Buksa, Nataliya"]
[Result "0-1"]
[WhiteElo "2257"]
[BlackElo "2401"]
[Annotator "TA"]
[PlyCount "112"]
[EventDate "2022.??.??"]
[TimeControl "60"]

{[%evp 14,111,16,0,0,0,0,0,19,0,0,0,0,0,0,0,0,0,0,0,0,-8,0,0,0,0,7,0,0,0,0,0,0,
0,0,-33,-38,-47,-56,-48,-63,-123,-104,-98,-116,-182,-189,-167,-166,-179,-190,
-216,-262,-256,-105,-151,-143,-154,-146,-150,-44,-177,-181,-226,-226,-285,-258,
-295,-246,-265,-138,-116,-107,-199,-198,-239,-237,-418,-440,-403,-434,-393,
-199,-180,-179,-246,-189,-222,-220,-216,-211,-329,-327,-500,-475,-641,-637,
-678,-559,-29999]} 1. c4 {[%emt 0:00:06]} e6 {[%emt 0:00:17]} 2. Nf3 {[%emt 0:
00:00]} d5 {[%emt 0:00:08]} 3. e3 {[%emt 0:00:19]} Nf6 {[%emt 0:00:36]} 4. b3 {
[%emt 0:00:38]} c5 {[%emt 0:01:16]} 5. Bb2 {[%emt 0:00:47]} Nc6 {[%emt 0:00:26]
} 6. cxd5 {[%emt 0:01:18]} exd5 {[%emt 0:00:05]} 7. Bb5 {[%emt 0:02:09]} Bd6 {
[%emt 0:00:06]} 8. O-O {[%emt 0:04:11]} O-O {[%emt 0:00:05] A13: English
Opening: 1...e6.} 9. d4 {[%emt 0:02:09]} cxd4 {[%emt 0:00:41]} 10. Nxd4 {
[%emt 0:04:23]} Bc7 {[%emt 0:00:12] The position is equal.} 11. Nd2 {[%emt 0:
00:00]} Nxd4 {[%emt 0:00:44]} 12. Bxd4 {[%emt 0:01:06]} Qd6 {[%emt 0:00:04]
[%csl Gc7][%cal Rd6h2]} 13. g3 {[%emt 0:00:57]} Ba5 {[%emt 0:01:08] aiming for
...Qb4.} 14. a3 {[%emt 0:11:14] Inhibits Qb4.} Bh3 {[%emt 0:00:26]} 15. Re1 {
[%emt 0:04:16]} Bxd2 {[%emt 0:01:49]} 16. Qxd2 {[%emt 0:03:51]} Ne4 {[%emt 0:
00:00][%cal Yf6e4,Ye4g5,Yg5e6] [#]} 17. Qe2 $146 {[%emt 0:07:20]} ({
Predecessor:} 17. Qd1 Rfc8 18. Bd3 Rc6 19. Bb5 Rcc8 20. Bd3 {½-½ (20)
Mercadal Benejam,J (2408)-Sherwood,R (2415) ICCF email 2021}) 17... Qe6 {
[%emt 0:27:55]} 18. Bd3 {[%emt 0:06:28]} Rac8 {[%emt 0:09:08]} 19. b4 {[%emt 0:
00:00]} (19. Bxa7 Ng5 20. Rec1 Bg4 $19) 19... a6 {[%emt 0:02:05]} 20. a4 {
[%emt 0:00:54]} Ng5 {[%emt 0:04:07] ...Bg4 is the strong threat.} 21. f3 {
[%emt 0:06:04] Prevents Bg4.} Bf5 $36 {[%emt 0:01:28] Black has the initiative.
} 22. Rf1 {[%emt 0:02:25]} Qg6 {[%emt 0:09:16]} 23. Rad1 {[%emt 0:00:00]} h5 {
[%emt 0:01:52]} 24. h4 {[%emt 0:06:40]} Ne6 {[%emt 0:05:45]} 25. Be5 {[%emt 0:
02:24]} f6 {[%emt 0:07:47]} 26. Bxf5 {[%emt 0:00:18]} Qxf5 {[%emt 0:00:06]} 27.
Ba1 {[%emt 0:03:25]} ({White should try} 27. Bf4 $15) 27... Rc4 $1 $17 {
[%emt 0:04:58]} 28. e4 {[%emt 0:09:54]} Qh3 {[%emt 0:00:04]} 29. exd5 {[%emt 0:
00:44]} (29. Qg2 $17 Qxg2+ 30. Kxg2 dxe4 31. fxe4) 29... Qxg3+ $19 {[%emt 0:01:
21]} 30. Qg2 {[%emt 0:00:05]} Qxg2+ {[%emt 0:00:31]} 31. Kxg2 {[%emt 0:00:04]}
Nf4+ {[%emt 0:00:05]} 32. Kf2 {[%emt 0:00:54]} Rd8 {[%emt 0:00:00]} 33. d6 {
[%emt 0:00:23]} Rc6 {[%emt 0:00:38]} (33... Rxb4 $19 {has better winning
chances.} 34. a5 Rb5) 34. d7 {[%emt 0:01:18]} (34. Kg3 $142 Ng6 35. b5 (35. d7
Rc7 $17) 35... Rcxd6 36. Rxd6 Rxd6 37. Rc1) 34... Rc7 {[%emt 0:00:05]} 35. Rd4
{[%emt 0:00:55] [#]} Ne6 {[%emt 0:00:16]} 36. Rd6 {[%emt 0:01:20] [#]} Nf8 {
[%emt 0:02:06]} (36... Kf7 $1 $17 37. Rfd1 Nf8) 37. Rd5 {[%emt 0:00:16]} (37.
Rg1 $1 $15) 37... Rdxd7 {[%emt 0:00:04]} 38. Rxh5 {[%emt 0:00:09]} Rc4 {
[%emt 0:00:03]} 39. Rg1 {[%emt 0:01:24]} Kf7 {[%emt 0:00:33]} ({And not} 39...
Rxb4 40. Bxf6 Ne6 41. Be5 $17) 40. Rg4 {[%emt 0:00:20]} Rc2+ {[%emt 0:09:44]}
41. Ke3 {[%emt 0:05:28]} Ra2 {[%emt 0:02:26]} (41... Ne6 $19 {Strongly
threatening ...Rcd2.} 42. Bd4 Rc6) 42. Bc3 $17 {[%emt 0:01:29]} Rxa4 {[%emt 0:
00:00]} 43. Rc5 {[%emt 0:00:16]} (43. Ra5 $17 {was worth a try.} Re7+ 44. Kd3
Rd7+ 45. Ke3 Rxa5 46. bxa5) 43... Ra3 $19 {[%emt 0:02:59]} 44. Rc8 {[%emt 0:00:
00]} Ne6 {[%emt 0:00:06] Inhibits Rd4.} 45. Rgc4 $2 {[%emt 0:01:58]} (45. h5 {
was necessary.}) 45... b5 {[%emt 0:02:39]} 46. R4c6 {[%emt 0:00:44]} a5 {
[%emt 0:00:21] Threatens to win with ...axb4.} 47. Kf2 {[%emt 0:03:05]} axb4 {
[%emt 0:00:12]} (47... a4 $142 48. Ke3 Re7) 48. Bxb4 {[%emt 0:00:06]} Rb3 {
[%emt 0:01:01]} 49. Be1 {[%emt 0:07:20]} (49. Rd6 $142 Rxd6 50. Bxd6) 49... Nd4
{[%emt 0:01:46]} 50. Rc3 {[%emt 0:00:53]} Rb2+ {[%emt 0:00:34]} 51. Kf1 {
[%emt 0:00:13]} Ne6 {[%emt 0:07:33]} 52. Re3 {[%emt 0:02:07]} (52. Rc2 {
might work better.} Rxc2 53. Rxc2) 52... Nf4 {[%emt 0:00:22]} 53. Rc1 {[%emt 0:
00:00]} (53. Bg3 $142 Rd1+ 54. Re1) 53... Rh2 {[%emt 0:03:38]} 54. Rcc3 {
[%emt 0:05:54]} Rd1 {[%emt 0:01:58]} 55. Rb3 {[%emt 0:00:34]} Nh3 {[%emt 0:00:
00][%csl Gh3][%cal Rh2f2]} 56. Rxb5 {[%emt 0:01:20]} Rf2# {[%emt 0:00:17]
Weighted Error Value: White=0.42/Black=0.19 (very precise)} 0-1